[Event "1st Henriquez Urena Memorial 2022"]
[Site "Santo Domingo"]
[Date "2022.09.21"]
[Round "7.8"]
[White "Camacho Campusano, David Daniel"]
[Black "Dominguez, Jose Manuel"]
[Result "1/2-1/2"]
[ECO "B07"]
[WhiteElo "2230"]
[BlackElo "2180"]
[Annotator "TA"]
[PlyCount "39"]
[EventDate "2022.09.16"]
[EventType "swiss"]
[EventCountry "DOM"]
[SourceTitle "playchess.com"]
[Source "ChessBase"]
[SourceQuality "1"]
[TimeControl "5400+30"]

{[%evp 11,39,38,29,26,45,10,29,15,12,-10,0,-12,9,-22,-11,-33,-26,-80,-70,-74,-59,-70,-95,-82,-79,-81,0,-21,0,-89]} 1. e4 {[%emt 0:00:49]} d6 {[%emt 0:02:38]} 2. d4 {[%emt 0:00:12]} Nf6 {[%emt 0:00:02]} 3. Nc3 {[%emt 0:00:14]} c6 {[%emt 0:00:02]} 4. Bg5 {[%emt 0:02:46]} Qa5 {[%emt 0:00:25]} 5. Qd2 {[%emt 0:02:10]} Nbd7 {[%emt 0:00:08]} 6. f4 {[%emt 0:02:11]} e5 {[%emt 0:00:02]} 7. Nf3 {[%emt 0:01:15] B07: Pirc Defence: Miscellaneous Systems.} Be7 {[%emt 0:00:13]} 8. Be2 {[%emt 0:09:35]} h6 {[%emt 0:04:40]} 9. Bxf6 {[%emt 0:03:23] White has an edge.} Bxf6 {[%emt 0:00:05]} 10. fxe5 {[%emt 0:02:16]} dxe5 {[%emt 0:00:06]} 11. d5 {[%emt 0:00:20]} Nb6 {[%emt 0:31:01] [#]} 12. a3 $146 {[%emt 0:05:39] And now b4 would win.} ({Predecessor:} 12. O-O Bg4 13. Kh1 Rd8 14. Rad1 Bxf3 15. Rxf3 Na4 16. Nxa4 Qxa4 17. c4 Be7 18. b3 {½-½ (41) Nystrom,L-Elomaa,A Helsinki 2010}) 12... Qc5 {[%emt 0:01:40]} 13. b4 {[%emt 0:02:12]} Qe7 {[%emt 0:04:04]} 14. d6 {[%emt 0:09:22]} (14. O-O $11 {keeps the balance.}) 14... Qe6 $17 {[%emt 0:00:08]} 15. Rd1 {[%emt 0:00:49] [#]} O-O $1 {[%emt 0:00:52]} 16. Qe3 {[%emt 0:04:33]} Rd8 {[%emt 0:03:11]} 17. Qc5 {[%emt 0:01:11] [#]} Nd7 $1 {[%emt 0:00:02]} 18. Qc4 {[%emt 0:00:21]} Nb6 {[%emt 0:00:02]} (18... Qxc4 $17 19. Bxc4 Nb6) 19. Qc5 $11 {[%emt 0:01:45]} Nd7 {[%emt 0:00:02]} ({Black should try} 19... Kh7 $11) 20. Qc4 $1 {[%emt 0:08:42] Weighted Error Value: White=0.13 (very precise) /Black=0.13 (very precise)} 1/2-1/2

[Event "1st Henriquez Urena Memorial 2022"]
[Site "Santo Domingo"]
[Date "2022.09.21"]
[Round "7.9"]
[White "Arvelo Leo, Gian Carlo"]
[Black "Subervi, Jonathan Sigfredo"]
[Result "0-1"]
[ECO "D00"]
[WhiteElo "2174"]
[BlackElo "2124"]
[Annotator "TA"]
[PlyCount "136"]
[EventDate "2022.09.16"]
[EventType "swiss"]
[EventCountry "DOM"]
[SourceTitle "playchess.com"]
[Source "ChessBase"]
[SourceQuality "1"]
[TimeControl "5400+30"]

{[%evp 9,136,0,0,0,0,4,0,-2,6,-2,0,-40,-38,-160,-146,-145,-133,-148,-150,-140,-113,-124,-135,-139,-120,-308,-197,-361,-131,-137,-159,-309,-316,-308,-311,-299,-307,-302,-290,-341,-346,-377,-352,-358,-352,-436,-379,-517,-510,-513,-482,-509,-498,-556,-535,-485,-455,-498,-435,-442,-443,-539,-538,-511,-451,-464,-469,-457,-384,-464,-461,-537,-500,-533,-526,-526,-527,-668,-662,-660,-672,-710,-708,-701,-658,-700,-690,-674,-642,-809,-798,-946,-957,-818,-818,-785,-816,-29970,-29971,-29971,-29972,-29970,-29967,-29978,-29977,-29975,-29964,-29981,-29982,-29982,-29982,-29981,-29979,-29980,-29981,-29986,-29981,-29977,-29976,-29987,-29988,-29988,-29989,-29989,-29990,-29990,-29990,-29998,-29999]} 1. d4 {[%emt 0:00:42]} Nf6 {[%emt 0:00:21]} 2. Bg5 {[%emt 0:02:15]} d5 {[%emt 0:00:18]} 3. Nd2 {[%emt 0:02:45]} c5 {[%emt 0:00:14]} 4. dxc5 {[%emt 0:01:26]} e6 {[%emt 0:00:08]} 5. e4 {[%emt 0:04:08]} Bxc5 {[%emt 0:03:12]} 6. Qe2 {[%emt 0:11:53] D00: 1 d4 d5: Unusual lines.} Be7 {[%emt 0:26:35]} 7. O-O-O {[%emt 0:05:15]} O-O {[%emt 0:00:25]} 8. f4 {[%emt 0:03:45] The position is equal.} Nc6 {[%emt 0:03:16]} 9. Ngf3 {[%emt 0:13:05]} a5 {[%emt 0:14:50][%cal Ba7a5,Ba5a4,Ba4a3][%mdl 32] [#]} 10. Qe1 $146 {[%emt 0:26:45]} ({Predecessor:} 10. e5 Nd7 11. h4 a4 12. a3 b5 13. Qxb5 Qc7 14. Bxe7 Nxe7 15. Qb4 Nf5 16. Bd3 {½-½ (65) Andreikin,D (2726)-Najer,E (2648) Chess.com INT 2020}) 10... a4 {[%emt 0:04:05] White must now prevent ...a3.} (10... h6 $5 {[%cal Rh6g5]} 11. Bh4 Qb6 $11) 11. c3 {[%emt 0:05:08]} (11. a3 $1 $15) 11... a3 $17 {[%emt 0:06:45] Threatens to win with ...axb2+.} 12. b3 {[%emt 0:00:16] [#]} Qa5 $1 {[%emt 0:10:38]} 13. b4 {[%emt 0:04:06]} Qc7 {[%emt 0:12:50] aiming for ...Nxb4.} 14. Kb1 {[%emt 0:16:01]} d4 {[%emt 0:06:40]} 15. Nxd4 {[%emt 0:00:00]} Nxd4 $40 {[%emt 0:00:11][%mdl 128] Black attacks with force.} 16. cxd4 {[%emt 0:00:00]} Bxb4 {[%emt 0:00:41][%cal Be7b4,Bb4c3,Bc3b2][%mdl 32] Black is more active.} ({Not} 16... Qc3 17. Nc4 Qxe1 18. Rxe1 $15) 17. Qe3 {[%emt 0:01:30] This costs White the game.} (17. Bxf6 $17 {was necessary.} Qc3 18. Nc4 Qxe1 19. Rxe1 Bxe1 20. Be7) 17... Ng4 {[%emt 0:06:01]} 18. Qg3 {[%emt 0:00:00]} (18. Qe2 f6 19. Rc1) 18... Qc3 $2 {[%emt 0:00:26]} 19. Qxc3 {[%emt 0:00:00]} Bxc3 {[%emt 0:00:02]} 20. Nb3 {[%emt 0:00:00]} (20. Be7 $17 Nf2 21. Bxf8) 20... Nf2 $19 {[%emt 0:00:13][%csl LRd1,LRe4,LRh1]} 21. Bb5 {[%emt 0:00:15]} Nxh1 {[%emt 0:01:05]} 22. Rxh1 {[%emt 0:00:50]} f6 {[%emt 0:00:39]} 23. Bh4 {[%emt 0:00:05]} Bb2 {[%emt 0:00:45]} 24. Be1 {[%emt 0:00:50]} b6 {[%emt 0:00:55]} 25. Bb4 {[%emt 0:00:25]} Rf7 {[%emt 0:00:14]} 26. Rd1 {[%emt 0:01:29]} Bb7 {[%emt 0:00:09]} 27. Bd3 {[%emt 0:00:34]} Rd8 {[%emt 0:00:30]} 28. d5 {[%emt 0:00:30]} exd5 {[%emt 0:00:14]} 29. Bc4 {[%emt 0:00:21]} Rfd7 {[%emt 0:00:50]} 30. Bb5 {[%emt 0:00:36]} Rc7 {[%emt 0:00:27]} 31. e5 {[%emt 0:00:19]} fxe5 {[%emt 0:00:17]} 32. fxe5 {[%emt 0:00:05]} Bxe5 {[%emt 0:01:10]} 33. Bxa3 {[%emt 0:00:07]} Bxh2 {[%emt 0:00:36][%cal Od5d4]} 34. Nd4 {[%emt 0:00:04]} Rf7 {[%emt 0:01:02]} 35. Bd3 {[%emt 0:01:39]} Ra8 {[%emt 0:00:31]} 36. Bb2 {[%emt 0:00:26]} Ba6 {[%emt 0:00:21]} 37. Bf5 {[%emt 0:00:29]} Bc8 {[%emt 0:00:15]} 38. Bc2 {[%emt 0:00:17]} g6 {[%emt 0:00:55]} 39. Nf3 {[%emt 0:00:24]} Bf4 {[%emt 0:00:15]} 40. Bb3 {[%emt 0:00:21]} Bf5+ {[%emt 0:00:24]} 41. Ka1 {[%emt 0:00:05]} Be4 {[%emt 0:00:24]} ({Avoid the trap} 41... Be6 $2 42. Re1 Bg4 43. Bxd5 Bxf3 44. gxf3 $19) 42. Re1 {[%emt 0:01:21]} Rd8 {[%emt 0:00:35]} 43. Nd4 {[%emt 0:00:48]} Bg3 {[%emt 0:00:31]} 44. Rc1 {[%emt 0:00:36]} Be5 {[%emt 0:00:11]} 45. Re1 {[%emt 0:00:30]} Bg7 {[%emt 0:01:14]} 46. Ne6 {[%emt 0:00:24]} Bxb2+ {[%emt 0:00:06]} 47. Kxb2 {[%emt 0:00:03]} Re8 {[%emt 0:00:27]} 48. Ng5 {[%emt 0:00:24]} Rf2+ {[%emt 0:00:27]} 49. Ka1 {[%emt 0:00:13]} Kg7 {[%emt 0:00:08]} 50. Bxd5 {[%emt 0:00:43]} Bxd5 {[%emt 0:00:11][%cal Re8e1] [#]} 51. Rxe8 {[%emt 0:00:07]} Rxa2+ {[%emt 0:00:22][%mdl 4096] Endgame KRB-KRN} 52. Kb1 {[%emt 0:00:06]} Rxg2 {[%emt 0:00:15]} 53. Re5 {[%emt 0:00:35]} Kf6 {[%emt 0:02:44] Black mates.} 54. Rxd5 {[%emt 0:00:07]} Rxg5 {[%emt 0:00:00] KR-KR} 55. Rd6+ {[%emt 0:00:04]} Kf5 {[%emt 0:00:00]} 56. Rxb6 {[%emt 0:00:05]} h5 {[%emt 0:00:27][%cal Bh7h5,Bh5h4,Bh4h3][%mdl 32]} 57. Kc2 {[%emt 0:03:43]} Rg2+ {[%emt 0:00:18]} 58. Kd1 {[%emt 0:00:00]} h4 {[%emt 0:00:14]} 59. Ke1 {[%emt 0:00:00]} g5 {[%emt 0:00:10]} 60. Kf1 {[%emt 0:00:00]} h3 {[%emt 0:00:19]} 61. Rb5+ {[%emt 0:00:00]} Kg4 {[%emt 0:00:51]} 62. Rb4+ {[%emt 0:00:00]} Kh5 {[%emt 0:00:08]} 63. Rb8 {[%emt 0:00:00]} Kh4 {[%emt 0:00:07]} 64. Rh8+ {[%emt 0:00:00]} Kg3 {[%emt 0:00:14]} 65. Rb8 {[%emt 0:00:00]} Rf2+ {[%emt 0:01:34]} 66. Ke1 {[%emt 0:00:00]} h2 {[%emt 0:00:26][%cal Rh2h1]} 67. Rh8 {[%emt 0:00:07]} Rg2 {[%emt 0:00:45]} 68. Rh3+ {[%emt 0:00:42]} Kxh3 {[%emt 0:00:13] Weighted Error Value: White=0.42/Black=0.28 (precise)} 0-1

[Event "1st Henriquez Urena Memorial 2022"]
[Site "Santo Domingo"]
[Date "2022.09.21"]
[Round "8.1"]
[White "Cuenca Jimenez, Jose Fernando"]
[Black "Quezada Perez, Yasser"]
[Result "0-1"]
[ECO "E11"]
[WhiteElo "2553"]
[BlackElo "2580"]
[Annotator "TA"]
[PlyCount "80"]
[EventDate "2022.09.16"]
[EventType "swiss"]
[EventCountry "DOM"]
[SourceTitle "playchess.com"]
[Source "ChessBase"]
[SourceQuality "1"]
[TimeControl "5400+30"]

{[%evp 12,80,30,35,30,22,14,20,23,20,33,16,32,29,37,20,13,13,13,13,16,12,13,13,13,18,26,32,31,25,42,31,119,124,124,122,135,131,116,118,139,118,125,118,128,110,107,93,95,43,33,-343,13,14,134,-28,9,-239,-240,-240,-242,-236,-244,-424,-419,-741,-741,-1178,-664,-626,-593]} 1. d4 {[%emt 0:04:44]} Nf6 {[%emt 0:02:34]} 2. c4 {[%emt 1:26:46]} e6 {[%emt 0:00:05]} 3. Nf3 {[%emt 0:00:11]} Bb4+ {[%emt 0:00:17]} 4. Bd2 {[%emt 0:00:14]} c5 {[%emt 0:00:18]} 5. Bxb4 {[%emt 0:01:04]} cxb4 {[%emt 0:00:04]} 6. a3 {[%emt 0:00:15]} bxa3 {[%emt 0:00:25]} 7. Rxa3 {[%emt 0:00:06] 7.Nxa3 is vanishing.} b6 {[%emt 0:01:39] E11: Bogo-Indian.} 8. Nc3 {[%emt 0:00:22]} Bb7 {[%emt 0:03:23] [#] Against e4} 9. d5 $146 {[%emt 0:00:05]} ({Predecessor:} 9. e3 O-O 10. Be2 a5 11. O-O Na6 12. Qb3 d6 13. Raa1 Rc8 14. Rfc1 Re8 15. Nd2 {1-0 (34) Lashkin,J (2386)-Kosakowski,J (2442) Chess.com INT 2022}) 9... exd5 {[%emt 0:05:24] The position is equal.} 10. cxd5 {[%emt 0:00:05]} O-O $1 {[%emt 0:00:06]} 11. e3 {[%emt 0:04:35]} a6 {[%emt 1:21:45]} 12. Ra4 {[%emt 0:02:36]} d6 {[%emt 0:06:21]} 13. Be2 {[%emt 0:01:06]} Nbd7 {[%emt 0:01:42]} 14. Rd4 {[%emt 0:01:57]} Re8 {[%emt 0:02:19]} 15. O-O {[%emt 1:20:32]} b5 {[%emt 0:04:16]} 16. Nd2 {[%emt 0:11:39]} Qb6 {[%emt 1:07:37]} 17. Qa1 {[%emt 0:04:35]} Re5 {[%emt 0:02:56][%cal Rf6d5]} 18. Bf3 {[%emt 1:05:05]} Rc8 {[%emt 0:15:54]} 19. Rd1 {[%emt 0:21:42]} Re7 {[%emt 0:04:21]} 20. Nb3 {[%emt 0:01:30]} Ne5 {[%emt 0:01:23]} 21. Be2 {[%emt 0:04:54]} Nc4 {[%emt 0:04:31]} (21... Ree8 $14) 22. Bxc4 $16 {[%emt 0:04:14]} bxc4 {[%emt 0:32:05]} 23. Nd2 {[%emt 0:11:11]} Rec7 {[%emt 0:00:04]} 24. Qa2 {[%emt 0:01:25][%cal Rd2c4]} Qb4 {[%emt 0:02:10]} 25. Qa3 {[%emt 0:21:15]} Qb6 {[%emt 0:06:46]} 26. Nce4 {[%emt 0:04:10] Pair of Knights!} Ne8 {[%emt 0:01:09]} 27. Qc3 {[%emt 0:04:31][%cal Rd2c4]} Qb5 {[%emt 0:03:16]} 28. Ra1 {[%emt 0:03:30]} f5 {[%emt 0:01:04]} 29. Ra5 {[%emt 0:04:07]} Qd7 {[%emt 0:00:00]} 30. Ng5 {[%emt 0:00:26] White has more active pieces.} ({White should play} 30. Ng3 $1 $16) 30... Rc5 $1 $14 {[%emt 0:00:00]} 31. e4 $2 {[%emt 0:04:34][%mdl 8192] [#]} ({But not} 31. Nxc4 Rxa5 32. Qxa5 Qb5 33. Qxb5 axb5 $15) (31. Rxc4 $14 Rxa5 32. Qxa5) 31... Rxa5 $2 {[%emt 0:00:00]} (31... Qd8 $1 $19 {[%cal Rd8a5]} 32. Rxc5 dxc5 33. Rxc4 Qxg5) 32. Qxa5 $11 {[%emt 0:00:01]} Nf6 {[%emt 0:00:00] [#]} (32... Rc5 $11 33. Qc3 fxe4) 33. Nxc4 $2 {[%emt 0:01:07]} ({White has to play} 33. f3 $1 $16) 33... fxe4 {[%emt 0:00:00]} 34. Qd2 $2 {[%emt 0:02:25]} (34. Qe1 $11 Re8 35. Nxe4) 34... Qa4 $19 {[%emt 0:00:00]} 35. Ne3 {[%emt 0:00:48]} Qa1+ {[%emt 0:00:00]} 36. Nd1 {[%emt 0:00:13]} Rc1 {[%emt 0:00:00] Threatens to win with ...a5.} 37. h3 $2 {[%emt 0:00:08]} (37. h4 {was called for.}) 37... h6 {[%emt 0:00:00][%cal Bh7h6,Bh6g5][%mdl 32]} 38. Kh2 {[%emt 0:01:06]} (38. Nxe4 $142 Nxe4 39. Qe2) 38... hxg5 {[%emt 0:00:00] Black is clearly winning.} 39. g4 {[%emt 0:00:33]} e3 {[%emt 0:00:00]} 40. fxe3 {[%emt 0:00:29]} Qb1 {[%emt 0:00:00] Weighted Error Value: White=0.75/Black=0.43} 0-1

[Event "1st Henriquez Urena Memorial 2022"]
[Site "Santo Domingo"]
[Date "2022.09.22"]
[Round "8.2"]
[White "Peralta, Fernando"]
[Black "Guzman, Christopher"]
[Result "1-0"]
[ECO "D27"]
[WhiteElo "2600"]
[BlackElo "2252"]
[Annotator "TA"]
[PlyCount "59"]
[EventDate "2022.09.16"]
[EventType "swiss"]
[EventCountry "DOM"]
[SourceTitle "playchess.com"]
[Source "ChessBase"]
[SourceQuality "1"]
[TimeControl "5400+30"]

{[%evp 24,59,57,49,93,95,193,192,250,241,456,452,645,191,298,291,243,253,516,522,487,450,668,669,655,643,633,546,546,548,548,547,583,522,546,548,548,535]} 1. d4 {[%emt 0:06:18]} d5 {[%emt 0:00:06]} 2. c4 {[%emt 0:00:03]} dxc4 {[%emt 0:00:05]} 3. Nf3 {[%emt 0:00:15]} Nf6 {[%emt 0:00:07]} 4. e3 {[%emt 0:00:04]} e6 {[%emt 0:00:04]} 5. Bxc4 {[%emt 0:00:03]} a6 {[%emt 0:00:26]} 6. O-O {[%emt 0:00:08]} c5 {[%emt 0:00:07]} 7. a4 {[%emt 0:00:23]} Nc6 {[%emt 0:00:39]} 8. Qe2 {[%emt 0:00:04]} cxd4 {[%emt 0:01:25]} 9. Rd1 {[%emt 0:00:04]} Be7 {[%emt 0:00:10]} 10. exd4 {[%emt 0:00:05]} O-O {[%emt 0:02:16]} 11. Nc3 {[%emt 0:00:05]} Nb4 {[%emt 0:00:16]} 12. Ne5 {[%emt 0:00:58]} Nbd5 {[%emt 0:02:34]} 13. Rd3 {[%emt 0:00:55]} Bd7 {[%emt 0:17:03] D27: Queen's Gambit Accepted: Classical main line: 7 e4!? and 7 a4.} 14. Rg3 {[%emt 0:01:27] White is more active.} Nxc3 {[%emt 0:03:44]} (14... Kh8 $16 {was worth a try.}) 15. bxc3 $18 {[%emt 0:00:41] [#]} Ne8 $146 {[%emt 0:12:22]} (15... Qc7 {is a better defense.} 16. Bh6 g6 17. Bxf8 Bxf8) ({Predecessor:} 15... Kh8 16. Bd3 Be8 17. Rh3 g6 18. Rb1 Rc8 19. Bh6 Rxc3 20. Rxb7 Nd5 21. Rf3 Bg5 22. Bxf8 {1-0 (48) Surya,W (2234)-Lioe,D (2418) Tagaytay City 2011}) 16. Rh3 {[%emt 0:20:24]} Nf6 {[%emt 0:09:04] Against Qh5} (16... Rc8 17. Bd3 f5) 17. Bd3 {[%emt 0:04:24][%cal Od3h7] [#] Hoping for Bxh7+!} g6 {[%emt 0:00:17]} (17... Bc6 $142 18. Bxh7+ Nxh7) 18. Bh6 $2 {[%emt 0:11:40]} (18. Qe3) 18... Re8 {[%emt 0:00:21]} (18... Bc6 $142 19. Nxc6 bxc6 20. Bxa6 c5 21. dxc5 Bxc5 22. Bxf8 Qxf8) 19. Qf3 {[%emt 0:00:16] Black must now prevent Bg5.} Bc6 {[%emt 0:02:42]} 20. Qf4 {[%emt 0:02:16] Strongly threatening Bg5.} ({Resist} 20. Nxc6 bxc6 21. Bg5 (21. Qxc6 Rc8 $14) 21... Nd5 22. Rxh7 Bf6 23. Bxf6 Qxf6 $14) 20... Rc8 $2 {[%emt 0:08:01]} (20... Rf8 21. Bxf8 Qxf8) 21. Bg5 {[%emt 0:03:05] White is clearly winning.} Rc7 {[%emt 0:02:02]} 22. Nxf7 {[%emt 0:03:04]} Kxf7 {[%emt 0:13:45]} (22... e5 $142 23. Nxe5 Rf8) 23. Rxh7+ {[%emt 0:04:33]} Kg8 {[%emt 0:00:06] [#]} 24. Bxf6 {[%emt 0:00:08]} Bxf6 {[%emt 0:01:43]} 25. Qxc7 {[%emt 0:00:16]} Qxc7 {[%emt 0:01:49]} 26. Rxc7 {[%emt 0:00:05][%cal Bh7c7,Bc7c8,Bc8b8][%mdl 32]} Bd8 {[%emt 0:00:12]} 27. Rc8 {[%emt 0:02:34]} Kf7 {[%emt 0:00:23]} 28. f3 {[%emt 0:00:49]} g5 {[%emt 0:00:11]} 29. Be4 {[%emt 0:00:18]} Bd7 {[%emt 0:00:02]} 30. Rb8 {[%emt 0:01:28] White took control after the opening.  Weighted Error Value: White=0.40/Black=0.96} 1-0

[Event "1st Henriquez Urena Memorial 2022"]
[Site "Santo Domingo"]
[Date "2022.09.22"]
[Round "8.3"]
[White "Ramirez, Alejandro"]
[Black "Mendez Ramirez, Victor"]
[Result "1-0"]
[ECO "D42"]
[WhiteElo "2561"]
[BlackElo "2153"]
[Annotator "TA"]
[PlyCount "133"]
[EventDate "2022.09.16"]
[EventType "swiss"]
[EventCountry "DOM"]
[SourceTitle "playchess.com"]
[Source "ChessBase"]
[SourceQuality "1"]
[TimeControl "5400+30"]

{[%evp 22,133,51,43,30,35,77,98,102,46,50,42,47,34,110,81,102,70,81,66,58,76,91,42,41,51,52,63,23,0,0,0,41,48,42,41,44,43,40,22,52,52,62,48,216,216,229,150,154,150,212,211,213,202,211,150,145,156,142,145,157,131,302,276,275,285,462,419,411,394,523,434,660,436,648,585,533,516,465,433,810,1054,1010,996,887,786,689,601,1211,1197,1732,801,2556,2162,6636,4799,2184,29959,29955,29963,29963,29955,29975,29976,29976,29977,29977,29978,29978,29979,29978,29978,29973,29973]} 1. c4 {[%emt 1:31:00]} c6 {[%emt 0:01:06]} 2. e4 {[%emt 0:00:00]} d5 {[%emt 0:00:37]} 3. exd5 {[%emt 0:00:00]} cxd5 {[%emt 0:00:14]} 4. cxd5 {[%emt 0:00:00]} Nf6 {[%emt 0:00:49]} 5. Nc3 {[%emt 0:00:00]} Nxd5 {[%emt 0:01:32]} 6. Nf3 {[%emt 0:00:00]} e6 {[%emt 0:02:30]} 7. d4 {[%emt 0:00:00]} Be7 {[%emt 0:01:22]} 8. Bd3 {[%emt 0:00:00]} Nc6 {[%emt 0:01:27]} 9. O-O {[%emt 0:00:00]} O-O {[%emt 0:01:29]} 10. Re1 {[%emt 0:00:00]} Ncb4 {[%emt 0:05:42]} 11. Bb1 {[%emt 0:00:00]} Nf6 {[%emt 0:00:55]} 12. Bg5 {[%emt 0:00:00]} Bd7 {[%emt 0:08:02] D42: Queen's Gambit Declined: Semi-Tarrasch: 5 cxd5 Nxd5 6 e3 Nc6 7 Bd3 .} 13. Ne5 {[%emt 0:00:00]} Nbd5 {[%emt 0:11:34] Inhibits Re3.} 14. Qd3 {[%emt 0:00:00]} g6 {[%emt 0:02:57][%cal Of6g4] White is better.} 15. Qf3 {[%emt 0:00:00] [#] Against Ng4. White has more active pieces. The black rooks are badly placed.} ({White should try} 15. Bh6 $1 $16) 15... Kg7 $146 {[%emt 0:10:32]} ({Predecessor:} 15... Bc6 16. Nxc6 bxc6 17. Bh6 Re8 18. Bc2 Qb6 19. Ba4 Rac8 20. Rac1 Bf8 21. Bxf8 Rxf8 {0-1 (33) Roinos,I (2135)-Ignatiadis,K (2095) Porto Rio 2016}) 16. Qh3 {[%emt 0:00:00] aiming for Nxd5.} Ng8 {[%emt 0:02:52]} 17. Bd2 {[%emt 0:00:00] Hoping for Nxd5.} Nxc3 {[%emt 0:07:25]} (17... Bc6 $14) 18. Bxc3 {[%emt 0:00:00][%cal Od4d5]} (18. Qxc3 Rc8 19. Qg3 Nf6 $14) 18... Bf6 {[%emt 0:16:51]} 19. Ng4 {[%emt 0:00:00]} Bc6 {[%emt 0:09:05]} 20. Nxf6 {[%emt 0:00:00]} Nxf6 {[%emt 0:00:07]} 21. d5 $1 {[%emt 0:00:00]} Bxd5 {[%emt 0:02:49]} 22. Be4 {[%emt 0:00:00]} (22. Bc2 $16) 22... Kg8 {[%emt 0:07:56] [#]} 23. Qh6 $1 {[%emt 0:00:00]} Rc8 {[%emt 0:00:52]} 24. Bxd5 {[%emt 0:03:05]} exd5 {[%emt 0:00:10]} 25. Red1 $40 {[%emt 0:03:08][%cal Od1d5][%mdl 128] White has some attack.} Rc6 {[%emt 0:00:41]} ({Resist} 25... Nh5 26. g4 Rxc3 27. bxc3 $16) 26. Rd3 {[%emt 0:00:55]} Qd6 {[%emt 0:02:24]} ({Don't do} 26... Nh5 27. Rad1 (27. g4 Nf6 $14) 27... Qe7 28. Rxd5 $16) 27. Rad1 {[%emt 0:01:39]} Re8 {[%emt 0:00:46] [#]} 28. Rxd5 $1 {[%emt 0:02:46]} Qf8 {[%emt 0:00:36]} 29. Qxf8+ {[%emt 0:00:23]} Kxf8 {[%emt 0:00:02]} 30. R5d3 {[%emt 0:00:26]} h5 {[%emt 0:01:09]} 31. f3 {[%emt 0:00:22]} Rce6 {[%emt 0:00:33]} 32. Kf1 {[%emt 0:00:28]} Kg8 $2 {[%emt 0:00:36] [#]} (32... b6 $14) 33. Rd6 $1 $18 {[%emt 0:00:52]} Kg7 {[%emt 0:00:41]} 34. Rxe6 {[%emt 0:00:32]} Rxe6 {[%emt 0:00:19][%mdl 4096] Endgame KRB-KRN} 35. Rd7 $1 {[%emt 0:00:06]} Kg8 {[%emt 0:00:46]} (35... b6 $16) 36. Rxb7 {[%emt 0:00:19]} a6 {[%emt 0:00:07]} 37. a4 {[%emt 0:01:18]} Kf8 {[%emt 0:00:13]} 38. b4 {[%emt 0:00:31]} Nd5 {[%emt 0:00:21]} 39. Bd4 {[%emt 0:00:01]} Ke8 {[%emt 0:00:39]} 40. b5 {[%emt 0:01:09]} axb5 {[%emt 0:00:32]} 41. Rxb5 {[%emt 0:00:01]} Nc7 {[%emt 0:00:31] This move loses the game for Black.} (41... Ne3+ $16 42. Kf2 Nf5) 42. Re5 {[%emt 0:00:39]} Kd7 {[%emt 0:00:25] [#]} 43. Rxe6 {[%emt 0:00:11]} Nxe6 {[%emt 0:00:03] KB-KN} (43... fxe6 44. Ke2 Kd6) 44. Be3 {[%emt 0:00:11]} Kc6 {[%emt 0:00:18]} 45. Ke2 {[%emt 0:00:02]} Kd5 {[%emt 0:00:57]} 46. Kd3 {[%emt 0:00:01]} Nc7 {[%emt 0:00:24]} (46... h4 $142 47. Kc3 Kd6) 47. Kc3 {[%emt 0:01:22]} Na6 {[%emt 0:00:13]} (47... Kc6 $142 48. Kc4 Nd5) 48. a5 {[%emt 0:00:23]} Nc7 {[%emt 0:00:35]} 49. Kb4 {[%emt 0:00:47]} Kc6 {[%emt 0:00:06]} 50. Kc4 {[%emt 0:00:02]} Na6 {[%emt 0:01:37]} (50... h4 $142 51. Bg5 h3) 51. h4 {[%emt 0:00:53]} Nc7 {[%emt 0:00:32]} 52. g3 {[%emt 0:01:26]} Na6 {[%emt 0:00:56]} 53. Kd4 {[%emt 0:00:48]} Nc7 {[%emt 0:00:29]} 54. Ke5 {[%emt 0:00:25]} Kd7 {[%emt 0:00:06]} 55. Bb6 {[%emt 0:00:24] Threatens to win with Bxc7.} Ne8 {[%emt 0:00:50]} 56. a6 {[%emt 0:00:24][%cal Ba5a6,Ba6a7][%mdl 32] Threatening mate with a7.} Kc6 {[%emt 0:00:09]} 57. a7 {[%emt 0:00:04]} Kb7 {[%emt 0:00:49]} 58. Bd4 {[%emt 0:00:33]} Ka8 {[%emt 0:00:19]} 59. g4 {[%emt 0:00:05]} Kb7 {[%emt 0:00:47] White mates.} 60. gxh5 {[%emt 0:00:17]} gxh5 {[%emt 0:00:08]} 61. Kf5 {[%emt 0:00:15]} Nc7 {[%emt 0:00:28]} 62. Kf6 {[%emt 0:00:28]} Ne6 {[%emt 0:00:56]} 63. Be3 {[%emt 0:00:07]} Nc7 {[%emt 0:00:30]} 64. Kxf7 {[%emt 0:00:12]} Nd5 {[%emt 0:00:12]} 65. Bd4 {[%emt 0:00:56]} Nf4 {[%emt 0:00:26]} 66. Kf6 {[%emt 0:00:27]} Ka8 {[%emt 0:00:31]} 67. Kf5 {[%emt 0:00:14] Weighted Error Value: White=0.18 (very precise) /Black=0.38} 1-0